[Event "RLP-ch Rapid 2024"]
[Site "Landau"]
[Date "2024.05.04"]
[Round "1.1"]
[White "Vogel, Johannes"]
[Black "Carow, Johannes"]
[Result "0-1"]
[ECO "B13"]
[WhiteElo "2169"]
[BlackElo "2456"]
[Annotator "TA"]
[PlyCount "96"]
[EventDate "2024.05.03"]
[EventType "swiss"]
[EventCountry "GER"]
[SourceTitle "playchess.com"]
[Source "ChessBase"]
[SourceQuality "1"]
[TimeControl "900+5"]

{[%evp 13,96,22,21,28,22,26,12,0,0,0,0,-23,-7,-12,-11,-69,-22,-51,-52,-64,-74,-65,-42,-45,-58,-53,-43,-58,-67,-82,-70,-82,-77,-87,-73,-72,-35,-64,-52,-172,-184,-210,-125,-131,-110,-161,-25,-270,-90,-256,-218,-283,-154,-162,-102,-132,-136,-169,-184,-160,-166,-279,-272,-319,-323,-390,-367,-352,-328,-389,-311,-412,-381,-374,-181,-221,-214,-233,-224,-216,-86,-1164,-949,-5214,-2931]} 1. e4 {[%emt 0:00:03]} c6 {[%emt 0:00:07]} 2. d4 {[%emt 0:00:08]} d5 {[%emt 0:00:02]} 3. exd5 {[%emt 0:01:01]} cxd5 {[%emt 0:00:02]} 4. c4 {[%emt 0:00:02]} Nf6 {[%emt 0:00:07]} 5. Nc3 {[%emt 0:00:02]} Nc6 {[%emt 0:00:10]} 6. Nf3 {[%emt 0:00:03]} Be6 {[%emt 0:00:20]} 7. c5 {[%emt 0:00:58]} g6 {[%emt 0:00:53]} 8. Bb5 {[%emt 0:00:03]} Bg7 {[%emt 0:00:04]} 9. O-O {[%emt 0:01:37]} O-O {[%emt 0:00:36]} 10. Bxc6 {[%emt 0:00:20] The position is equal.} bxc6 {[%emt 0:00:01]} 11. Ne5 {[%emt 0:01:24] Wards off Bg4} Qc7 {[%emt 0:00:35]} 12. h3 {[%emt 0:00:24]} Nd7 {[%emt 0:01:46]} 13. Nf3 {[%emt 0:00:15]} Bf5 {[%emt 0:03:01]} 14. g4 {[%emt 0:00:54]} ({White should play} 14. Nh4 $11) 14... Be6 {[%emt 0:00:53]} (14... Be4 $15 15. Ng5 Rab8) 15. Re1 {[%emt 0:00:48]} Rfe8 $1 {[%emt 0:01:28]} 16. Bg5 {[%emt 0:00:45]} Nf8 {[%emt 0:00:07]} 17. Qd2 {[%emt 0:00:07]} Qd7 {[%emt 0:00:20][%cal Oe6g4]} 18. Nh2 {[%emt 0:01:48]} h5 {[%emt 0:00:17]} 19. f3 {[%emt 0:00:58]} Rab8 {[%emt 0:00:13]} 20. Bf4 {[%emt 0:00:16]} Rb4 {[%emt 0:00:26]} 21. Be5 {[%emt 0:00:19]} f6 {[%emt 0:00:22]} 22. Bg3 {[%emt 0:00:19][%cal Oc3d5]} Qb7 {[%emt 0:00:29]} 23. Re2 {[%emt 0:00:15]} Bf7 {[%emt 0:00:06] Strongly threatening ...Ne6.} 24. Rae1 {[%emt 0:00:12] [#]} h4 $1 {[%emt 0:01:29]} 25. Bxh4 {[%emt 0:00:13]} e5 $36 {[%emt 0:00:09][%mdl 2048] Black is more active.} 26. Bf2 {[%emt 0:00:12]} (26. dxe5 $15 fxe5 27. Bg3) 26... Ne6 $19 {[%emt 0:00:12][%cal Re6d4]} 27. a3 {[%emt 0:00:38] [#]} Rc4 {[%emt 0:00:37]} (27... Rb3 $1 $19 {Hoping for ...Nf4.} 28. Na2 Nf4) 28. dxe5 $17 {[%emt 0:00:24]} fxe5 {[%emt 0:00:07]} (28... Nxc5 $2 29. Bxc5 fxe5 30. b4 $18) 29. Bg3 {[%emt 0:00:02]} (29. Rxe5 $17 Bxe5 30. Rxe5) 29... Nd4 {[%emt 0:00:54]} (29... Nxc5 30. Bxe5 Rxe5 31. Rxe5 $15) (29... e4 $19 30. fxe4 d4 (30... Rxc5 31. exd5 cxd5 32. Be5 $11)) 30. Re3 $2 {[%emt 0:00:23]} (30. Rxe5 $11 Bxe5 31. Bxe5) 30... Bh6 $2 {[%emt 0:00:11]} (30... Rxc5 31. Rxe5 (31. Bxe5 Nb3 $17) 31... Bxe5 32. Rxe5 $17 (32. Bxe5 Rc4 $17)) (30... Nb3 $19 31. Qe2 d4 (31... Rxc5 $2 32. Rd3 $19) (31... Nxc5 $2 32. b4 $19)) 31. f4 $2 {[%emt 0:00:01]} e4 {[%emt 0:00:16]} (31... Bxf4 32. Bxf4 Nb3 33. Qe2 Rxf4 34. Rxe5 Rxe5 35. Qxe5 $11) 32. Ne2 {[%emt 0:01:47]} Nxe2+ {[%emt 0:00:15]} (32... Nc2 $19 33. b3 Rxc5) 33. Qxe2 {[%emt 0:00:01][%cal Oh2f3]} Rxc5 {[%emt 0:00:09]} ({Better is} 33... Bf8 $19 34. b4 a5) 34. g5 {[%emt 0:00:11]} Bg7 {[%emt 0:00:02][%cal Of7e6]} 35. Bf2 {[%emt 0:00:00]} Rb5 {[%emt 0:00:06]} 36. b4 {[%emt 0:00:04]} a5 {[%emt 0:00:15]} 37. bxa5 {[%emt 0:00:06]} (37. Ng4 $142) 37... Rb2 $19 {[%emt 0:00:02]} ({Don't play} 37... Rxa5 38. Ng4 $17) 38. a6 {[%emt 0:00:09]} Qa8 {[%emt 0:00:15]} 39. Qf1 {[%emt 0:00:06]} c5 {[%emt 0:00:07] White must now prevent ...d4.} 40. Qg2 {[%emt 0:00:53]} Be6 {[%emt 0:00:14]} 41. Ng4 {[%emt 0:00:03]} Bf5 {[%emt 0:00:10][%cal Od5d4]} 42. R3e2 {[%emt 0:00:08]} Rxe2 {[%emt 0:00:08]} ({Not} 42... Qxa6 43. Rxb2 Bxg4 44. Bxc5 Bxh3 45. Qxh3 $17) 43. Rxe2 {[%emt 0:00:01]} Qxa6 {[%emt 0:00:02]} (43... d4 $142 44. Rc2 e3 (44... Qxa6 $2 45. Rxc5 e3 46. Be1 $19) 45. Qxa8 exf2+ (45... Rxa8 $2 46. Rxc5 exf2+ 47. Kxf2 $19) 46. Kxf2 Rxa8 47. Rxc5 Rxa6) 44. Bxc5 {[%emt 0:00:05]} d4 {[%emt 0:00:14]} 45. Nf6+ {[%emt 0:00:11]} Bxf6 {[%emt 0:00:01]} 46. gxf6 {[%emt 0:00:01]} Qc4 {[%emt 0:00:10]} (46... Qxf6 $19 {is more deadly.} 47. Rb2 e3 48. Qd5+ Qf7 49. Qxf7+ Kxf7 50. Rb7+ Kg8 51. Bxd4 e2 (51... Bxh3 52. Rg7+ Kf8 53. Rh7 $11)) 47. Be7 $2 {[%emt 0:00:04][%mdl 8192]} (47. Rc2 $17 Qd5 48. Bb4) 47... d3 {[%emt 0:00:06]} 48. Re3 {[%emt 0:00:02]} Qc1+ {[%emt 0:00:05] Weighted Error Value: White=0.68/Black=0.39.  Loses game:     	White=3     	---        Missed win:     	---       	Black=1      Mistake:       	White=4     	Black=7      Inaccurate:     	White=3     	Black=1      OK:         	White=8     	Black=13     Best:        	White=2     	Black=6      Strong:       	---       	Black=1} 0-1

[Event "RLP-ch Rapid 2024"]
[Site "Landau"]
[Date "2024.05.04"]
[Round "1.2"]
[White "Frischmann, Rick"]
[Black "Esswein, Karlheinz"]
[Result "1-0"]
[ECO "B00"]
[WhiteElo "2355"]
[BlackElo "2022"]
[Annotator "TA"]
[PlyCount "63"]
[EventDate "2024.05.03"]
[EventType "swiss"]
[EventCountry "GER"]
[SourceTitle "playchess.com"]
[Source "ChessBase"]
[SourceQuality "1"]
[TimeControl "900+5"]

{[%evp 9,63,39,44,31,85,65,65,60,71,74,73,71,72,22,64,50,100,104,110,113,114,111,122,100,109,40,146,147,271,276,267,256,680,679,767,764,1382,1371,1690,1304,29988,745,1085,1106,995,999,29992,29993,29996,29997,29997,29996,29996,29994,29997,29998]} 1. e4 {[%emt 0:00:03]} Nc6 {[%emt 0:00:05]} 2. Nf3 {[%emt 0:00:02]} d6 {[%emt 0:00:04]} 3. d4 {[%emt 0:00:04][%cal Bd2d4,Bd4d5][%mdl 32]} g6 {[%emt 0:00:16]} 4. d5 {[%emt 0:00:43]} Nb8 {[%emt 0:00:02]} 5. Nc3 {[%emt 0:00:11]} Bg7 {[%emt 0:00:01]} 6. Be3 {[%emt 0:00:01]} c5 {[%emt 0:00:21]} (6... Nf6 $14) 7. Qd2 {[%emt 0:00:25]} Bg4 {[%emt 0:00:16]} 8. Ng1 {[%emt 0:00:34] White is slightly better.} a6 {[%emt 0:00:17]} 9. a4 {[%emt 0:00:36]} Qa5 {[%emt 0:00:43][%cal Ob7b5]} 10. Ra3 {[%emt 0:00:30]} Bc8 {[%emt 0:00:29]} 11. f4 {[%emt 0:03:50]} ({White should play} 11. Nf3 $16) 11... Nd7 {[%emt 0:00:05]} 12. Nf3 {[%emt 0:00:03]} Qc7 {[%emt 0:01:26]} (12... Ngf6 $14) 13. Bc4 $16 {[%emt 0:01:26]} Ngf6 {[%emt 0:01:16]} 14. h3 {[%emt 0:00:01] Against Ng4} O-O {[%emt 0:00:29]} 15. O-O {[%emt 0:00:02]} b6 {[%emt 0:01:00]} 16. Raa1 {[%emt 0:01:02]} Rb8 {[%emt 0:00:03] [#]} 17. e5 {[%emt 0:00:05]} Ne8 {[%emt 0:00:40]} (17... dxe5 $14 18. fxe5 Nxe5 19. Nxe5 Qxe5) 18. e6 {[%emt 0:00:03] Black must now prevent f5. White is much more active.} fxe6 {[%emt 0:00:23]} (18... Bxc3 $16 {was called for.} 19. exf7+ (19. bxc3 fxe6 20. dxe6 Ndf6 $16) 19... Rxf7 20. bxc3 (20. Qxc3 b5 $14) 20... b5) 19. dxe6 $18 {[%emt 0:00:01]} Ndf6 {[%emt 0:00:01] [#]} 20. f5 $1 {[%emt 0:00:49]} Nh5 $2 {[%emt 0:00:22]} (20... gxf5 21. Nh4 b5) 21. fxg6 {[%emt 0:00:38] Black is weak on the light squares} hxg6 {[%emt 0:00:03]} 22. Nh4 {[%emt 0:00:03]} b5 {[%emt 0:01:33]} 23. Rxf8+ {[%emt 0:00:02]} Bxf8 {[%emt 0:00:14]} 24. axb5 {[%emt 0:00:03] Qd3 would now be deadly.} axb5 {[%emt 0:00:06]} 25. Bd5 {[%emt 0:00:43]} (25. Qd3 $142 Nhf6 26. Qxg6+ Kh8 27. Qf7 (27. Nxb5 Rxb5 28. Bxb5 Bxe6 $18) (27. Bxb5 Bxe6 28. Bg5 Bg7 $18) (27. Nd5 Bxe6 28. Nxc7 Nxc7 $18) 27... Bg7 28. Nd5 (28. Bxb5 Rxb5 29. Nxb5 Qc6 $18) (28. Nxb5 Bxe6 29. Qxe6 Qc8 $18) 28... Bxe6 29. Ng6+ (29. Qxe6 bxc4 30. Nxc7 Nxc7 $18) 29... Kh7 30. Nf8+ (30. Qxe6 bxc4 31. Nxc7 Nxc7 $18) 30... Kh8 31. Nxe6 (31. Qxe6 bxc4 32. Ng6+ Kh7 $18)) 25... Nef6 {[%emt 0:00:12]} 26. Qd3 {[%emt 0:00:26]} Bg7 {[%emt 0:00:41]} 27. Qxg6 {[%emt 0:00:29][%cal Oc3e4] White threatens Ne4! and mate.} b4 {[%emt 0:00:10]} 28. Ne4 {[%emt 0:00:03] White mates.} Bb7 {[%emt 0:00:41]} 29. Qf7+ {[%emt 0:01:24]} Kh8 {[%emt 0:00:24][%cal Bg8h8,Bh8h7,Bh7h6][%mdl 32]} 30. Ng6+ {[%emt 0:00:04]} Kh7 {[%emt 0:00:05]} 31. Ng5+ {[%emt 0:00:07]} ({Weaker is} 31. Qxe7 Qxe7 (31... Nxd5 32. Qg5 $18) 32. Nxe7 Nxe4 $11 (32... Bxd5 33. Ng5+ Kh8 34. g4 $16)) 31... Kh6 {[%emt 0:00:06] [#]} 32. Nh4 $1 {[%emt 0:00:31] Weighted Error Value: White=0.10 (very precise) /Black=1.05.  Mistake:       	White=2     	Black=5      Inaccurate:     	---       	Black=1      OK:         	White=7     	Black=3      Best:        	White=1     	---        Strong:       	White=1     	---} 1-0

[Event "RLP-ch Rapid 2024"]
[Site "Landau"]
[Date "2024.05.04"]
[Round "1.3"]
[White "Meuer, David"]
[Black "Baerwinkel, Tobias"]
[Result "1-0"]
[ECO "B22"]
[WhiteElo "2067"]
[BlackElo "2289"]
[Annotator "TA"]
[PlyCount "91"]
[EventDate "2024.05.03"]
[EventType "swiss"]
[EventCountry "GER"]
[SourceTitle "playchess.com"]
[Source "ChessBase"]
[SourceQuality "1"]
[TimeControl "900+5"]

{[%evp 17,91,0,0,-11,-17,-6,0,0,143,137,139,142,175,150,125,92,84,78,95,82,143,129,134,108,107,55,127,126,175,133,139,97,168,141,147,140,214,211,250,223,291,253,289,279,416,437,470,459,446,355,479,465,424,427,600,577,602,619,624,615,668,655,843,758,1165,1167,1400,1301,2006,1700,2125,2084,29990,29991,29991,29992]} 1. e4 {[%emt 0:00:02]} c5 {[%emt 0:00:03]} 2. c3 {[%emt 0:00:05]} Nf6 {[%emt 0:00:03]} 3. e5 {[%emt 0:00:01]} Nd5 {[%emt 0:00:01]} 4. d4 {[%emt 0:00:02]} cxd4 {[%emt 0:00:02]} 5. Nf3 {[%emt 0:00:01]} d6 {[%emt 0:00:02]} 6. Bc4 {[%emt 0:00:03]} Nb6 {[%emt 0:00:37]} 7. Bb3 {[%emt 0:00:09]} Nc6 {[%emt 0:00:17]} 8. exd6 {[%emt 0:00:24]} Qxd6 {[%emt 0:00:13]} 9. O-O {[%emt 0:00:02]} Be6 {[%emt 0:00:44]} 10. Na3 {[%emt 0:00:15][%cal Bb1a3,Ba3b5,Bb5d6][%mdl 32] [#] aiming for Nb5.} dxc3 {[%emt 0:01:51]} 11. Bxe6 {[%emt 0:00:05]} (11. Nb5 {simplifies} Qxd1 12. Rxd1 Rc8 13. Bxe6 fxe6 14. Nxc3 g6 15. Ng5) 11... Qxe6 {[%emt 0:01:39]} 12. Nb5 {[%emt 0:00:14] The position is equal.} Rc8 {[%emt 0:00:50] Dodges Nc7+} (12... Qd7 $11 {keeps the balance.}) 13. Re1 $16 {[%emt 0:00:23]} Qd5 {[%emt 0:02:13]} (13... c2 $2 14. Qd2 (14. Qxc2 Ne5 $15) 14... Qd5 15. Nd6+ Kd7 16. Nxc8 Kxc8 17. Qxc2) 14. Nd6+ {[%emt 0:01:28]} ({Stronger than} 14. Nxc3 Qxd1 15. Nxd1 e6 $17) 14... Kd7 {[%emt 0:00:09]} 15. Nxc8 {[%emt 0:00:46]} Kxc8 {[%emt 0:00:05]} 16. bxc3 {[%emt 0:00:25]} Qxd1 {[%emt 0:00:38]} 17. Rxd1 {[%emt 0:00:01]} f6 {[%emt 0:00:13] Prevents Ng5} 18. Nd4 {[%emt 0:00:27]} Nd8 {[%emt 0:00:27]} (18... Nxd4 $142 19. Rxd4 (19. cxd4 Nd5 $16) 19... e5) 19. a4 {[%emt 0:01:12]} e5 {[%emt 0:00:53]} 20. Nb5 {[%emt 0:00:18]} a6 {[%emt 0:00:29] [#]} 21. Nd6+ {[%emt 0:00:54]} (21. a5 $1 $16 Nc4 22. Na7+ Kc7 23. Ra4) 21... Kc7 {[%emt 0:00:41]} ({Black should try} 21... Bxd6 $14 22. Rxd6 Nc4) 22. Be3 $36 {[%emt 0:00:46][%mdl 2048] Threatens to win with Ne8+. Black is under strong pressure.} Nd7 {[%emt 0:01:41]} (22... Bxd6 $16 23. Bxb6+ Kc6) 23. Ne4 {[%emt 0:00:48]} Ne6 {[%emt 0:00:11]} 24. Rab1 {[%emt 0:00:53]} h6 {[%emt 0:01:27]} (24... f5 $16) 25. f3 {[%emt 0:00:22]} f5 {[%emt 0:00:05]} 26. Nd2 {[%emt 0:00:09] White is much more active.} Be7 {[%emt 0:00:40]} (26... Bc5 $16 27. Nc4 e4) 27. Nc4 $18 {[%emt 0:00:11][%cal Ob1b7]} Nec5 {[%emt 0:00:01]} 28. a5 {[%emt 0:00:12]} g5 {[%emt 0:00:05]} 29. Nb6 {[%emt 0:01:14] And now Nxd7 would win.} Nxb6 {[%emt 0:00:05]} 30. Rxb6 {[%emt 0:00:05]} Na4 {[%emt 0:00:22]} (30... Rh7 $142 31. Rg6 f4) 31. Re6 {[%emt 0:00:27][%csl LRe5,LRe7]} Bd8 {[%emt 0:00:29]} 32. Rxe5 {[%emt 0:00:23]} Kb8 {[%emt 0:00:01]} 33. c4 {[%emt 0:01:06]} ({Don't take} 33. Rxf5 Re8 34. Re1 Kc8) 33... f4 {[%emt 0:00:01]} 34. Bd4 {[%emt 0:00:15]} Bf6 {[%emt 0:00:11]} 35. Rd5 {[%emt 0:00:14] Dodges Rd8} Rf8 {[%emt 0:00:06]} (35... Bxd4+ $142 36. R1xd4 Ka7) 36. Bxf6 {[%emt 0:00:35]} Rxf6 {[%emt 0:00:01][%mdl 4096] Endgame. KRR-KRN} 37. Rd6 {[%emt 0:00:35]} Rf7 {[%emt 0:00:11]} 38. Rxh6 {[%emt 0:00:05]} Nc3 {[%emt 0:00:04]} 39. Re1 {[%emt 0:00:31]} Rc7 {[%emt 0:00:04]} 40. Rh5 {[%emt 0:00:10]} Rc5 {[%emt 0:00:16]} 41. h4 {[%emt 0:00:07][%cal Bh2h4,Bh4h5,Bh5h6,Bh6h7][%mdl 32]} Rxa5 {[%emt 0:00:00]} 42. Rxg5 {[%emt 0:00:04]} Ra2 {[%emt 0:00:03]} 43. h5 {[%emt 0:00:08] Intending h6 and mate.} Ne2+ {[%emt 0:00:01]} 44. Kh2 {[%emt 0:00:11] White threatens h6 and mate.} Ng3 {[%emt 0:00:02]} 45. h6 {[%emt 0:00:21]} Rd2 {[%emt 0:00:02]} 46. h7 {[%emt 0:00:20] Weighted Error Value: White=0.17 (very precise) /Black=0.65.  Mistake:       	White=1     	Black=8      Inaccurate:     	White=1     	Black=2      OK:         	White=9     	Black=5      Best:        	White=2     	Black=2} 1-0

[Event "RLP-ch Rapid 2024"]
[Site "Landau"]
[Date "2024.05.04"]
[Round "1.4"]
[White "Muranyi, Karl-Jasmin"]
[Black "Lebzak, Jaroslav"]
[Result "0-1"]
[ECO "A13"]
[WhiteElo "2338"]
[BlackElo "2141"]
[Annotator "TA"]
[PlyCount "50"]
[EventDate "2024.05.03"]
[EventType "swiss"]
[EventCountry "GER"]
[SourceTitle "playchess.com"]
[Source "ChessBase"]
[SourceQuality "1"]
[TimeControl "900+5"]

{[%evp 16,50,33,41,41,52,33,55,36,51,57,34,46,41,147,141,164,131,135,121,164,167,201,0,150,101,102,53,45,57,42,9,12,0,45,-445,-442]} 1. c4 {[%emt 0:00:01]} e6 {[%emt 0:00:02]} 2. Nf3 {[%emt 0:00:03]} d5 {[%emt 0:00:01]} 3. e3 {[%emt 0:00:02]} Nf6 {[%emt 0:00:18]} 4. b3 {[%emt 0:00:01]} c5 {[%emt 0:00:01]} 5. Bb2 {[%emt 0:00:03]} Nc6 {[%emt 0:00:03]} 6. cxd5 {[%emt 0:00:01]} exd5 {[%emt 0:00:06]} 7. d4 {[%emt 0:00:02]} Be7 {[%emt 0:00:50]} 8. Be2 {[%emt 0:00:02]} O-O {[%emt 0:00:03]} 9. O-O {[%emt 0:00:04]} Re8 {[%emt 0:00:22]} 10. Nc3 {[%emt 0:00:02]} Bf5 {[%emt 0:01:52]} 11. Rc1 {[%emt 0:00:37]} cxd4 {[%emt 0:02:27] White is slightly better.} 12. Nxd4 {[%emt 0:00:02]} Bg6 {[%emt 0:00:02]} 13. Nxc6 {[%emt 0:01:03]} bxc6 {[%emt 0:00:03]} 14. Na4 {[%emt 0:00:00]} Ne4 {[%emt 0:02:42]} (14... Rc8 $14) 15. Rxc6 $16 {[%emt 0:00:33]} Bd6 {[%emt 0:00:29]} 16. Nc3 {[%emt 0:03:28]} (16. Qxd5 $2 Bxh2+ 17. Kxh2 Qxd5 $19) 16... Nxc3 {[%emt 0:02:01]} 17. Bxc3 {[%emt 0:00:02]} ({Much worse is} 17. Rxc3 $6 Be5 $11) 17... Qd7 {[%emt 0:00:14]} 18. Bb5 {[%emt 0:00:15]} (18. Qxd5 $2 Bxh2+ 19. Kxh2 Qxd5 $19) 18... Re6 {[%emt 0:01:01][%cal Od6h2] [#]} 19. Rc5 $2 {[%emt 0:00:49]} Qe7 {[%emt 0:00:20]} ({Better is} 19... Bxh2+ $11 20. Kh1 Qe7 21. Qxd5 (21. Rxd5 $2 {perishes.} Qh4 $19) 21... Rd8) 20. Rxd5 {[%emt 0:00:03]} (20. Qd4 $142 $1 {[%csl Gc3][%cal Rd4g7]} Be5 21. Qxd5) 20... Be4 {[%emt 0:00:18]} 21. Rh5 {[%emt 0:01:53]} (21. Bc4 $16) 21... Rd8 $1 $14 {[%emt 0:01:21][%cal Od6h2]} 22. Qe2 {[%emt 0:03:05] Hoping for Bc4.} Bg6 {[%emt 0:00:11]} 23. Rh3 {[%emt 0:01:14] And now Bc4 would win.} (23. g3 $5 Bxh5 24. Qxh5 $11) 23... Bf5 $1 {[%emt 0:00:06]} 24. Rh5 {[%emt 0:00:21]} Bg6 {[%emt 0:00:02] [#]} 25. Bc4 $2 {[%emt 0:00:09][%mdl 8192]} Bxh5 {[%emt 0:00:16] Black used his chance.   Weighted Error Value: White=0.54/Black=0.26 (precise) .  Loses game:     	White=1     	---        Missed win:     	White=1     	---        Mistake:       	White=2     	Black=2      Inaccurate:     	White=1     	Black=1      OK:         	White=4     	Black=3      Best:        	White=1     	Black=2      Strong:       	---       	Black=2} 0-1

[Event "RLP-ch Rapid 2024"]
[Site "Landau"]
[Date "2024.05.04"]
[Round "1.5"]
[White "Perske, Paul"]
[Black "Barzen, Pascal"]
[Result "0-1"]
[ECO "E15"]
[WhiteElo "2120"]
[BlackElo "2291"]
[Annotator "TA"]
[PlyCount "92"]
[EventDate "2024.05.03"]
[EventType "swiss"]
[EventCountry "GER"]
[SourceTitle "playchess.com"]
[Source "ChessBase"]
[SourceQuality "1"]
[TimeControl "900+5"]

{[%evp 18,92,0,-1,-6,-24,-18,-22,-27,-11,-25,-27,-16,-36,-23,-53,-11,-455,-440,-437,-441,-458,-438,-466,-195,-412,-98,-112,-81,-78,-40,-68,-48,-170,-152,-150,-150,-147,-148,-162,-129,-140,-47,-164,-160,-202,-108,-274,-278,-272,-241,-329,-335,-334,-338,-329,-343,-331,-344,-402,-405,-489,-483,-464,-446,-422,-437,-539,-541,-866,-845,-752,-415,-1591,-541,-29979,-29980]} 1. d4 {[%emt 0:00:01]} Nf6 {[%emt 0:00:01]} 2. c4 {[%emt 0:00:02]} e6 {[%emt 0:00:01]} 3. Nf3 {[%emt 0:00:01]} b6 {[%emt 0:00:01]} 4. g3 {[%emt 0:00:02]} Ba6 {[%emt 0:00:02]} 5. b3 {[%emt 0:00:01]} Bb4+ {[%emt 0:00:01]} 6. Bd2 {[%emt 0:00:01]} Be7 {[%emt 0:00:02]} 7. Nc3 {[%emt 0:00:02]} d5 {[%emt 0:00:04]} 8. Bg2 {[%emt 0:00:10]} O-O {[%emt 0:00:02]} 9. O-O {[%emt 0:00:03]} c6 {[%emt 0:00:05]} 10. Ne5 {[%emt 0:00:10]} dxc4 {[%emt 0:00:09]} 11. bxc4 {[%emt 0:02:37]} Qxd4 {[%emt 0:00:08]} 12. Bxc6 {[%emt 0:00:03]} Nxc6 {[%emt 0:00:33] The position is equal.} 13. Nxc6 {[%emt 0:00:02]} Qd6 {[%emt 0:00:11]} (13... Qxc4 $2 14. Nxe7+ Kh8 15. Rc1 $18) 14. Nxe7+ {[%emt 0:00:10]} Qxe7 {[%emt 0:00:01]} 15. Qa4 {[%emt 0:00:10]} Bb7 {[%emt 0:00:17]} 16. Nb5 {[%emt 0:00:02][%cal Od2b4] Threatens to win with Bb4!} Qd7 {[%emt 0:00:39]} 17. Rfd1 {[%emt 0:00:13][%mdl 8192]} (17. Qb4 $11) 17... e5 $19 {[%emt 0:00:55] ...Qh3 would now be deadly.} 18. f3 {[%emt 0:01:46]} Qh3 {[%emt 0:01:03][%cal Of6g4]} 19. c5 {[%emt 0:01:10]} e4 {[%emt 0:01:16][%cal Of6g4]} (19... bxc5 20. Nd6 Bd5 21. Bg5 $17) 20. Rf1 {[%emt 0:03:01]} bxc5 {[%emt 0:02:17]} (20... exf3 $142 21. exf3 Bxf3 (21... bxc5 $2 22. Bg5 $17) 22. Rxf3 Ng4) 21. Nd6 $2 {[%emt 0:00:41]} (21. Bg5 {is a better defense.} Nh5 (21... exf3 22. exf3 Rfe8 23. Qc4 $17) 22. Rf2 exf3 23. exf3 Nxg3 24. Qf4) 21... Bd5 $2 {[%emt 0:00:10]} (21... exf3 $19 {is more deadly. ( -> ...Qg2#)} 22. exf3 Bxf3 23. Rxf3 Ng4) 22. Bc3 $17 {[%emt 0:01:15]} exf3 {[%emt 0:01:43]} 23. exf3 {[%emt 0:00:13]} Qe6 $40 {[%emt 0:01:07][%mdl 128] Black mounts an attack.} 24. Qf4 {[%emt 0:00:43] Against Qe3+} Nh5 $1 {[%emt 0:01:38]} (24... Bxa2 $2 25. Bxf6 Bb3 26. Bc3 $18) 25. Qg4 {[%emt 0:00:01]} (25. Qe5 $15) 25... Qe3+ $19 {[%emt 0:00:18]} (25... Bxa2 $2 26. Qxh5 Qxd6 27. Rxa2 $18) 26. Kh1 {[%emt 0:00:21] [#]} Nxg3+ {[%emt 0:00:34]} 27. Qxg3 {[%emt 0:00:26][%csl Gc3][%cal Rg3g7]} Qxc3 {[%emt 0:00:02]} 28. Rac1 {[%emt 0:00:22] [#]} Qb2 {[%emt 0:00:41]} 29. Rxc5 {[%emt 0:00:14]} Be6 {[%emt 0:00:04]} (29... Bxa2 30. Rg1 g6 31. Qf4) (29... Qxa2 $2 30. Nf5 g6 31. Ne7+ Kg7 32. Qe5+ (32. Nxd5 Qe2 $18) 32... f6 33. Qxd5 Qxd5 (33... Qe2 $2 34. Nf5+ Kh8 35. Ng3 $18) 34. Nxd5 $18) ({Black should play} 29... Qe2 $17 30. Kg1 Qe3+ (30... Qxa2 $2 31. Nf5 $18) 31. Qf2 Qe6) 30. Ne4 {[%emt 0:01:03]} (30. Re5 $15) 30... Rfc8 {[%emt 0:00:25]} (30... Bxa2 31. Rg1 g6 32. Qh4 $11) (30... Qxa2 $2 31. Nf6+ Kh8 32. Rg1 $18) 31. Rg5 {[%emt 0:00:18]} g6 {[%emt 0:00:20]} ({Weaker is} 31... Bxa2 32. Rg1 g6 33. Qf4 $11) (31... h6 $19 32. Qe5 Qxe5 (32... Qxa2 33. Qxg7#) 33. Rxe5 Bxa2) 32. Re5 {[%emt 0:00:10]} (32. Qh4 $17) 32... Rc1 $1 {[%emt 0:00:17]} ({Not} 32... Bxa2 33. Qg5 Rc6 34. Nf6+ Kg7 35. Ne8+ Rxe8 36. Rxe8 $15) (32... Qxa2 33. Qf4 Qb2 34. Nf6+ Kg7 35. Nh5+ gxh5 (35... Kg8 $2 36. Qf6 $18) 36. Rxh5 $16) 33. Nf6+ {[%emt 0:00:19]} Kg7 {[%emt 0:00:01]} 34. Nh5+ {[%emt 0:00:30]} Kh8 {[%emt 0:00:02]} 35. Rxc1 {[%emt 0:00:26]} Qxc1+ {[%emt 0:00:02]} 36. Re1 {[%emt 0:00:01] Threatening mate with Qe5+.} Qc3 {[%emt 0:00:02]} 37. Nf4 {[%emt 0:00:24]} Bxa2 {[%emt 0:00:03]} 38. Ne2 {[%emt 0:00:12]} Qf6 {[%emt 0:00:08]} 39. Nc1 {[%emt 0:00:08]} Bd5 {[%emt 0:00:13][%cal Oa8c8] aiming for ...Rc8!} 40. Kg2 {[%emt 0:00:01]} Rc8 {[%emt 0:00:04] Strongly threatening ...Rc2+.} 41. Nd3 {[%emt 0:00:14]} Rc2+ {[%emt 0:00:04]} 42. Nf2 {[%emt 0:00:01]} Kg7 {[%emt 0:00:11]} 43. Re3 {[%emt 0:00:04]} h5 {[%emt 0:00:12] Hoping for ...h4.} 44. h4 {[%emt 0:00:15]} Qd4 {[%emt 0:00:22]} 45. Re7 {[%emt 0:00:24]} (45. Qe5+ $142 Qxe5 46. Rxe5) 45... a5 {[%emt 0:00:02]} (45... Kh7 $142 {...a5 is the strong threat.} 46. Re1 a5) 46. Rd7 {[%emt 0:00:13] [#]} Bxf3+ $1 {[%emt 0:00:14][%mdl 512] Weighted Error Value: White=0.87/Black=0.53.  Loses game:     	White=2     	---        Missed win:     	---       	Black=1      Mistake:       	White=3     	Black=3      Inaccurate:     	White=4     	Black=2      OK:         	White=11    	Black=14     Best:        	White=4     	Black=5      Strong:       	---       	Black=2} 0-1